fUSD/lending_fUSD_20250222
["ID","MTS","AMOUNT","RATE_DAILY","PERIOD"]
[354080586,1740226248374,-500.0,0.00013,2]
[354080588,1740226248385,-1264.58791,0.00013,2]
[354080590,1740226248394,-156.8858597,0.00013018,2]
[354080592,1740226248404,-285.24325925,0.00013027,2]
[354080594,1740226248414,-150.27670633,0.00013027,2]
[354080595,1740226248424,-638.69019027,0.00013027,2]
[354080598,1740226248436,-150.0,0.00013027,2]
[354080600,1740226248446,-500.0,0.00013027,2]
[354080602,1740226248457,-150.0,0.00013055,2]
[354080604,1740226248467,-540.0,0.00013055,2]
[354080605,1740226248477,-500.0,0.00013064,2]
[354080607,1740226248487,-594.69002901,0.00013064,2]
[354080609,1740226248498,-500.0,0.00013064,2]
[354080611,1740226248509,-513.71979814,0.00013064,2]
[354080613,1740226248518,-365.92587129,0.00013064,2]
[354080616,1740226248529,-508.02350745,0.00013064,2]
[354080618,1740226248540,-500.0,0.00013064,2]
[354080620,1740226248551,-562.71223289,0.00013064,2]
[354080622,1740226248561,-558.23597684,0.00013064,2]
[354080624,1740226248571,-500.0,0.00013064,2]
[354080626,1740226248581,-500.0,0.00013064,2]
[354080628,1740226248591,-500.0,0.00013064,2]
[354080629,1740226248600,-505.09591891,0.00013064,2]
[354080631,1740226248610,-645.95381825,0.00013064,2]
[354080633,1740226248622,-500.0,0.00013064,2]
[354080636,1740226248634,-250.62158957,0.00013082,2]
[354080638,1740226248643,-2576.15237925,0.00013105,2]
[354080640,1740226248653,-204.0,0.0001311,2]
[354080642,1740226248662,-200.0,0.0001313,2]
[354080643,1740226248672,-500.0,0.00013146,2]
[354080645,1740226248682,-500.0,0.00013146,2]
[354080648,1740226248693,-454.91,0.00013146,2]
[354080650,1740226248703,-209.94442415,0.00013186,2]
[354080652,1740226248715,-253.64392284,0.000132,2]
[354080654,1740226248725,-250.31531116,0.000132,2]
[354080656,1740226248735,-223.3163507,0.00013228,2]
[354080658,1740226248746,-5442.751661,0.0001326,2]
[354080660,1740226248756,-261.9583501,0.00013291,2]
[354080662,1740226248766,-740.7015275,0.00013291,2]
[354080664,1740226248776,-500.0,0.00013299,2]
[354080666,1740226248786,-500.0,0.00013299,2]
[354080668,1740226248795,-1000.0,0.00013299,2]
[354080670,1740226248805,-1000.0,0.00013299,2]
[354080672,1740226248814,-1000.0,0.00013299,2]
[354080674,1740226248823,-40000.0,0.000133,2]
[354080676,1740226248834,-168882.0,0.000133,7]
[354080678,1740226248843,-151.0,0.000133,2]
[354080679,1740226248852,-151.0,0.000133,2]
[354080680,1740226248862,-204.0,0.0001332,2]
[354080681,1740226248871,-204.0,0.0001332,2]
[354080682,1740226248881,-261.9583501,0.00013361,2]
[354080683,1740226248891,-261.9583501,0.00013361,2]
[354080684,1740226248900,-740.7015275,0.00013361,2]
[354080685,1740226248910,-740.7015275,0.00013361,2]
[354080686,1740226248920,-5003.55310987,0.00013368,3]
[354080687,1740226248929,-151.0,0.00013369,2]
[354080688,1740226248938,-303.15194063,0.00013369,2]
[354080689,1740226248947,-500.0,0.00013369,2]
[354080690,1740226248958,-163.08,0.00013369,2]
[354080693,1740226248968,-500.0,0.00013369,2]
[354080694,1740226248979,-500.0,0.00013369,2]
[354080696,1740226248989,-500.0,0.00013369,2]
[354080699,1740226248998,-500.0,0.00013369,2]
[354080701,1740226249009,-1671.0,0.0001337,2]
[354080703,1740226249019,-159363.89058619,0.0001337,3]
[354080705,1740226249028,-871886.23488607,0.0001337,2]
[354080707,1740226249038,-151.0,0.0001337,2]
[354080709,1740226249048,-151.0,0.0001337,2]
[354080711,1740226249058,-201.325956,0.0001337,2]
[354080713,1740226249068,-151.655388,0.0001337,2]
[354080715,1740226249078,-299.825608,0.0001337,2]
[354080717,1740226249088,-151.0,0.0001337,2]
[354080719,1740226249097,-151.0,0.0001337,2]
[354080721,1740226249107,-151.0,0.0001337,2]
[354080722,1740226249117,-151.0,0.0001337,2]
[354080724,1740226249127,-564.1,0.00013391,2]
[354080727,1740226249137,-150.0,0.00013397,2]
[354080729,1740226249146,-2576.15237925,0.00013403,2]
[354080731,1740226249156,-261.9583501,0.00013403,2]
[354080733,1740226249166,-740.7015275,0.00013403,2]
[354080734,1740226249176,-620.0676724,0.00013424,2]
[354080736,1740226249186,-333.24958355,0.0001348,2]
[354080739,1740226249196,-7285.1,0.0001349,2]
[354080741,1740226249206,-3000.0,0.000135,2]
[354080742,1740226249216,-5011.0,0.000135,3]
[354080744,1740226249225,-500.0,0.00013512,2]
[354080747,1740226249236,-204.0,0.0001353,2]
[354080749,1740226249246,-204.0,0.0001353,2]
[354080751,1740226249256,-501.45,0.0001357,2]
[354080753,1740226249265,-500.0,0.0001357,2]
[354080755,1740226249275,-500.0,0.0001357,2]
[354080757,1740226249285,-500.0,0.0001357,2]
[354080759,1740226249295,-1439.79999994,0.0001358,2]
[354080761,1740226249304,-8000.0,0.000136,2]
[354080762,1740226249314,-222.43,0.000136,10]
[354080765,1740226249325,-600.0,0.00013694,2]
[354080767,1740226249334,-500.0,0.00013694,2]
[354080768,1740226249347,-600.0,0.00013694,2]
[354080771,1740226249357,-1848.95134406,0.00013698,2]
[354080773,1740226249367,-500.0,0.00013698,2]
[354080775,1740226249376,-500.0,0.00013698,2]
[354080777,1740226249386,-500.0,0.00013698,2]
[354080779,1740226249396,-500.0,0.00013698,2]
[354080781,1740226249406,-500.0,0.00013698,2]
[354080783,1740226249415,-513.81605751,0.00013698,2]
[354080784,1740226249426,-1000.0,0.00013698,2]
[354080787,1740226249435,-525.84567153,0.00013698,2]
[354080789,1740226249445,-5800.0,0.00013698,2]
[354080791,1740226249456,-500.0,0.00013699,2]
[354080793,1740226249466,-500.0,0.00013699,2]
[354080795,1740226249477,-500.0,0.00013699,2]
[354080797,1740226249488,-500.0,0.00013699,2]
[354080799,1740226249498,-500.0,0.00013699,2]
[354080801,1740226249509,-500.0,0.00013699,2]
[354080803,1740226249519,-5385.58,0.00013699,7]
[354080805,1740226249529,-5385.58,0.00013699,7]
[354080807,1740226249539,-5385.58,0.00013699,7]
[354080809,1740226249549,-5385.58,0.00013699,7]
[354080811,1740226249558,-628.0,0.00013699,5]
[354080813,1740226249568,-4000.0,0.00013699,2]
[354080815,1740226249578,-350.82,0.00013699,2]
[354080817,1740226249589,-15351.96,0.00013699,2]
[354080820,1740226249600,-200.0,0.00013699,2]
[354080822,1740226249610,-500.0,0.00013699,2]
[354080824,1740226249620,-150.0,0.00013699,2]
[354080826,1740226249630,-500.0,0.00013699,2]
[354080828,1740226249639,-500.0,0.00013699,2]
[354080830,1740226249648,-500.0,0.00013699,2]
[354080832,1740226249658,-680.0,0.000137,2]
[354080834,1740226249667,-344.22812849,0.000137,2]
[354080836,1740226249676,-156.8858597,0.000137,2]
[354080838,1740226249686,-2576.15237925,0.000137,2]
[354080840,1740226249696,-151.0,0.000137,2]
[354080842,1740226249705,-223.53077232,0.000137,2]
[354080844,1740226249715,-5155.5922659,0.000137,2]
[354080846,1740226249725,-181.29664065,0.000137,2]
[354080848,1740226249735,-1326.3,0.000137,2]
[354080850,1740226249745,-1326.3,0.000137,2]
[354080852,1740226249755,-204.0,0.0001374,2]
[354080854,1740226249764,-204.0,0.0001374,2]
[354080856,1740226249773,-422.58839256,0.00013758,2]
[354080858,1740226249783,-165.28612645,0.0001377,2]
[354080860,1740226249792,-261.9583501,0.00013771,2]
[354080862,1740226249802,-740.7015275,0.00013771,2]
[354080864,1740226249811,-500.0,0.00013773,2]
[354080866,1740226249821,-500.0,0.00013773,2]
[354080868,1740226249830,-500.0,0.00013773,2]
[354080870,1740226249840,-501.72783223,0.00013773,2]
[354080872,1740226249850,-728.99,0.00013779,2]
[354080874,1740226249860,-500.0,0.00013779,2]
[354080876,1740226249870,-500.0,0.00013779,2]
[354080878,1740226249880,-500.0,0.00013779,2]
[354080880,1740226249890,-559954.74670341,0.0001378,10]
[354080882,1740226249900,-151.0,0.0001378,2]
[354080884,1740226249909,-151.0,0.0001378,2]
[354080886,1740226249919,-151.0,0.0001378,2]
[354080888,1740226249928,-151.0,0.0001378,2]
[354080890,1740226249937,-151.0,0.0001378,2]
[354080892,1740226249947,-151.0,0.0001378,2]
[354080894,1740226249956,-151.0,0.0001378,2]
[354080896,1740226249967,-151.0,0.0001378,2]
[354080898,1740226249976,-151.0,0.0001378,2]
[354080900,1740226249986,-151.0,0.0001378,2]
[354080902,1740226249996,-151.0,0.0001378,2]
[354080904,1740226250005,-151.0,0.0001378,2]
[354080906,1740226250015,-151.0,0.0001378,2]
[354080908,1740226250024,-151.0,0.0001378,2]
[354080910,1740226250034,-151.0,0.0001378,2]
[354080912,1740226250043,-151.0,0.0001378,2]
[354080914,1740226250053,-151.0,0.0001378,2]
[354080916,1740226250063,-151.0,0.0001378,2]
[354080918,1740226250072,-151.0,0.0001378,2]
[354080920,1740226250082,-151.0,0.0001378,2]
[354080922,1740226250092,-151.0,0.0001378,2]
[354080924,1740226250102,-151.0,0.0001378,2]
[354080926,1740226250112,-151.0,0.0001378,2]
[354080928,1740226250122,-151.0,0.0001378,2]
[354080931,1740226250131,-151.0,0.0001378,2]
[354080933,1740226250141,-151.0,0.0001378,2]
[354080935,1740226250153,-151.0,0.0001378,2]
[354080937,1740226250164,-151.0,0.0001378,2]
[354080939,1740226250175,-157.509712,0.0001378,2]
[354080941,1740226250185,-151.0,0.0001378,2]
[354080943,1740226250194,-151.0,0.0001378,2]
[354080945,1740226250204,-151.0,0.0001378,2]
[354080947,1740226250213,-151.0,0.0001378,2]
[354080949,1740226250223,-151.0,0.0001378,2]
[354080951,1740226250232,-151.0,0.0001378,2]
[354080953,1740226250241,-151.0,0.0001378,2]
[354080955,1740226250251,-151.0,0.0001378,2]
[354080957,1740226250261,-223.352645,0.0001378,2]
[354080959,1740226250270,-223.352645,0.0001378,2]
[354080961,1740226250279,-223.352645,0.0001378,2]
[354080963,1740226250289,-223.352645,0.0001378,2]
[354080965,1740226250298,-500.0,0.00013799,2]
[354080967,1740226250308,-500.0,0.00013799,2]
[354080969,1740226250317,-500.0,0.00013799,2]
[354080971,1740226250326,-500.0,0.00013799,2]
[354080973,1740226250336,-500.0,0.00013799,2]
[354080975,1740226250347,-500.0,0.00013799,2]
[354080978,1740226250358,-500.0,0.00013799,2]
[354080980,1740226250368,-500.0,0.00013799,2]
[354080982,1740226250377,-500.0,0.00013799,2]
[354080984,1740226250387,-407.51859001,0.00013799,2]
[354080986,1740226250398,-2052644.38628577,0.000138,2]
[354081011,1740226250700,-1950.0,0.000138,2]
[354081013,1740226250713,-437.631,0.000138,2]
[354081015,1740226250725,-75358.1683715,0.000138,2]
[354081017,1740226250734,-40168.0,0.000138,2]
[354081019,1740226250743,-19653.50123041,0.000138,15]
[354081021,1740226250752,-348.1321481,0.000138,15]
[354081022,1740226250761,-151.0,0.000138,2]
[354081023,1740226250771,-151.0,0.000138,2]
[354081024,1740226250782,-151.0,0.000138,2]
[354081025,1740226250791,-151.0,0.000138,2]
[354081026,1740226250800,-151.0,0.000138,2]
[354081027,1740226250810,-151.0,0.000138,2]
[354081028,1740226250820,-151.0,0.000138,2]
[354081029,1740226250830,-151.0,0.000138,2]
[354081030,1740226250839,-151.0,0.000138,2]
[354081031,1740226250848,-151.0,0.000138,2]
[354081032,1740226250857,-223.352645,0.000138,2]
[354081033,1740226250867,-112.91076336,0.000138,2]
[354081034,1740226250956,-500.0,0.00010958,2]
[354081035,1740226250966,-110.44188164,0.000138,2]
[354081036,1740226250975,-209.94442415,0.00013829,2]
[354081037,1740226250984,-223.69747069,0.00013832,2]
[354081038,1740226250996,-17.67408776,0.00013832,2]
[354081039,1740226251005,-489.85619916,0.00013915,2]
[354081040,1740226251016,-510.14380084,0.00013915,2]
[354081041,1740226251026,-5.66726616,0.00013916,2]
[354081042,1740226251037,-475.33246739,0.00013916,2]
[354081043,1740226251048,-247.99026645,0.00013916,2]
[354081044,1740226251059,-204.0,0.0001395,2]
[354081045,1740226251068,-114.00497961,0.0001395,2]
[354081046,1740226251080,-89.99502039,0.0001395,2]
[354081047,1740226251089,-5385.58,0.00013973,7]
[354081048,1740226251098,-5385.58,0.00013973,7]
[354081049,1740226251107,-546.0,0.00013973,2]
[354081050,1740226251116,-449.61,0.0001398,2]
[354081051,1740226251125,-38031.50349203,0.00014,4]
[354081052,1740226251135,-546.0,0.00014,2]
[354081054,1740226251144,-650.0,0.00014,2]
[354081056,1740226251153,-1356.87,0.00014,2]
[354081058,1740226251163,-1356.87,0.00014,2]
[354081060,1740226251172,-1356.87,0.00014,2]
[354081062,1740226251181,-1356.87,0.00014,2]
[354081064,1740226251190,-1356.87,0.00014,2]
[354081065,1740226251199,-1356.87,0.00014,2]
[354081066,1740226251209,-1356.87,0.00014,2]
[354081067,1740226251218,-1356.87,0.00014,2]
[354081068,1740226251228,-1356.87,0.00014,2]
[354081069,1740226251237,-1356.87,0.00014,2]
[354081070,1740226251247,-1356.87,0.00014,2]
[354081071,1740226251256,-1356.87,0.00014,2]
[354081072,1740226251266,-1356.87,0.00014,2]
[354081073,1740226251276,-1356.87,0.00014,2]
[354081074,1740226251286,-1356.87,0.00014,2]
[354081075,1740226251295,-1356.87,0.00014,2]
[354081076,1740226251305,-1356.87,0.00014,2]
[354081077,1740226251315,-1356.87,0.00014,2]
[354081078,1740226251324,-1356.87,0.00014,2]
[354081079,1740226251334,-1356.87,0.00014,2]
[354081080,1740226251344,-1356.87,0.00014,2]
[354081081,1740226251356,-1356.87,0.00014,2]
[354081082,1740226251366,-1356.87,0.00014,2]
[354081083,1740226251375,-1357.00889934,0.00014,2]
[354081084,1740226251385,-728.99,0.00014053,2]
[354081085,1740226251395,-150.0,0.00014059,2]
[354081086,1740226251404,-841.57,0.00014067,2]
[354081087,1740226251414,-3026.32951885,0.000141,2]
[354081088,1740226251424,-204.0,0.0001416,2]
[354081089,1740226251434,-204.0,0.0001416,2]
[354081090,1740226251444,-728.99,0.0001419,2]
[354081091,1740226251454,-546.0,0.00014247,2]
[354081092,1740226251463,-1000.0,0.00014247,2]
[354081093,1740226251472,-619.71083583,0.00014247,2]
[354081094,1740226251481,-1000.0,0.00014247,2]
[354081095,1740226251491,-5385.58,0.00014247,7]
[354081096,1740226251500,-5385.58,0.00014247,7]
[354081097,1740226251509,-253.64392278,0.00014271,2]
[354081098,1740226251519,-47200.0,0.00014316,2]
[354081099,1740226251528,-1000.0,0.00014321,2]
[354081100,1740226251537,-1000.0,0.00014321,2]
[354081101,1740226251546,-1000.0,0.00014321,2]
[354081102,1740226251557,-728.99,0.00014327,2]
[354081103,1740226251566,-204.0,0.0001437,2]
[354081104,1740226251575,-204.0,0.0001437,2]
[354081105,1740226251584,-546.0,0.00014384,2]
[354081106,1740226251594,-150.0,0.0001442,2]
[354081107,1740226251603,-233.42,0.00014438,2]
[354081108,1740226251612,-728.99,0.00014464,2]
[354081109,1740226251621,-209.94442415,0.00014471,2]
[354081110,1740226251631,-5385.58,0.00014521,7]
[354081111,1740226251640,-5385.58,0.00014521,7]
[354081112,1740226251649,-546.0,0.00014521,2]
[354081113,1740226251658,-152.0,0.00014525,3]
[354081114,1740226251667,-204.0,0.0001458,2]
[354081115,1740226251676,-204.0,0.0001458,2]
[354081116,1740226251686,-102655.35600435,0.000146,2]
[354081117,1740226251695,-92953.93575166,0.000146,2]
[354081118,1740226251707,-423.95581672,0.000146,2]
[354081119,1740226251719,-253.20212574,0.000146,2]
[354081120,1740226251730,-2431.28688213,0.000146,2]
[354081121,1740226995473,65683.2800618,8.661e-05,7]
[354081125,1740227188496,164.04,8.767e-05,2]
[354081154,1740227431423,-743.37793005,9.99e-05,2]
[354081155,1740227431433,-297.89403441,9.999e-05,2]
[354081156,1740227431445,-291.5349804,9.999e-05,2]
[354081157,1740227431456,-2715.57995216,9.999e-05,2]
[354081158,1740227431468,-586.2,9.999e-05,2]
[354081159,1740227431479,-378.65149525,9.999e-05,2]
[354081160,1740227431490,-400.0,9.999e-05,2]
[354081161,1740227431502,-2605.21471463,9.999e-05,2]
[354081162,1740227431536,-13892.43888594,9.999e-05,2]
[354081163,1740227431647,-41357.61495918,9.999e-05,2]
[354081164,1740227431658,-294.51208672,9.999e-05,2]
[354081165,1740227431668,-1241515.6783634,0.0001,2]
[354081166,1740227431679,-769852.37072633,0.0001,2]
[354081746,1740227437502,-1936.18,0.0001,2]
[354081958,1740227439846,-8496.36384485,0.0001,2]
[354081960,1740227439858,-7322.17433972,0.0001,2]
[354081965,1740227439901,-66545.58364572,0.0001,2]
[354082235,1740227442495,-209807.24008462,0.0001,2]
[354082242,1740227442550,-2642.11225194,0.0001,2]
[354082249,1740227442606,-776.08985858,0.0001,2]
[354082500,1740227445486,-388236.57640831,0.0001,2]
[354082737,1740227874140,746.18,8.219e-05,2]
[354082738,1740228304222,150.0,9e-05,2]
[354082739,1740228306525,150.0,9e-05,2]
[354082740,1740228310276,150.0,9e-05,2]
[354082743,1740228591076,249.33,9.503e-05,2]
[354082747,1740228631666,-7997.39,9.65e-05,2]
[354082748,1740228631675,-200.0,9.688e-05,2]
[354082749,1740228631684,-684.79,9.752e-05,2]
[354082750,1740228631694,-150.0,9.781e-05,2]
[354082751,1740228631702,-123.80326393,9.784e-05,2]
[354082752,1740228631714,-615.83639847,9.784e-05,2]
[354082753,1740228631723,-163.84,9.785e-05,2]
[354082754,1740228631732,-300.0,9.798e-05,2]
[354082755,1740228631741,-438.10328643,9.8e-05,2]
[354082756,1740228631752,-297.04785907,9.8e-05,2]
[354082757,1740228631764,-482.10129402,9.8e-05,2]
[354082758,1740228631783,-3148.68456048,9.8e-05,2]
[354082759,1740228631793,-163.931,9.8e-05,2]
[354082760,1740228631802,-2000.0,9.81e-05,2]
[354082761,1740228631812,-250.0,9.81e-05,2]
[354082762,1740228631821,-1000.0,9.912e-05,2]
[354082763,1740228631830,-500.0,9.998e-05,2]
[354082764,1740228631840,-609.78,9.999e-05,2]
[354082765,1740228631849,-150.0,9.999e-05,2]
[354082766,1740228631858,-500.0,9.999e-05,2]
[354082767,1740228631867,-500.0,9.999e-05,2]
[354082768,1740228631877,-500.0,9.999e-05,2]
[354082769,1740228631886,-635.15613651,9.999e-05,2]
[354082770,1740228631895,-754769.86082877,0.0001,2]
[354082771,1740228631906,-3499.37093081,0.0001,2]
[354082772,1740228631917,-4458.09753364,0.0001,2]
[354082773,1740228631928,-191238.33908657,0.0001,2]
[354082774,1740228631939,-10852.23557576,0.0001,2]
[354082775,1740228631950,-7715.60587923,0.0001,2]
[354082776,1740228631963,-2473.27029021,0.0001,2]
[354082777,1740228631974,-65722.35834701,0.0001,2]
[354082778,1740228631996,-500.0,0.0001,2]
[354082780,1740228632007,-500.0,0.0001,2]
[354082783,1740228632018,-1434.30223989,0.0001,2]
[354082785,1740228632029,-398.05286501,0.0001,2]
[354083362,1740228637587,-3456.95682332,0.0001,2]
[354083369,1740228637642,-1498.96480575,0.0001,2]
[354083372,1740228637653,-511.64502855,0.0001,2]
[354083374,1740228637664,-13980.23118418,0.0001,2]
[354083379,1740228637698,-8595.71340036,0.0001,2]
[354083381,1740228637709,-2076.34305428,0.0001,2]
[354083387,1740228637754,-1248.82727493,0.0001,2]
[354083389,1740228637765,-740.34726879,0.0001,2]
[354083395,1740228637810,-1053.13715554,0.0001,2]
[354083397,1740228637821,-3883.02901182,0.0001,2]
[354083399,1740228637832,-23999.32410261,0.0001,2]
[354083405,1740228637871,-1202.55802759,0.0001,2]
[354083407,1740228637881,-490.0000224,0.0001,2]
[354083409,1740228637892,-1095.435283,0.0001,2]
[354083625,1740228639836,-9953.84001737,0.0001,2]
[354083627,1740228639847,-902.18031963,0.0001,2]
[354083633,1740228639891,-414.54,0.0001,2]
[354083635,1740228639902,-285.12435591,0.0001,2]
[354083648,1740228640006,-2742.93179206,0.0001,2]
[354083650,1740228640017,-4586.97262945,0.0001,2]
[354083652,1740228640028,-801.53436685,0.0001,2]
[354083656,1740228640055,-1092.27862809,0.0001,2]
[354083658,1740228640067,-711.58483449,0.0001,2]
[354083660,1740228640078,-202234.1094848,0.0001,2]
[354083662,1740228640089,-714.03443072,0.0001,2]
[354083665,1740228640100,-20047.75957867,0.0001,2]
[354083667,1740228640111,-7153.73604969,0.0001,2]
[354083669,1740228640122,-961.96729101,0.0001,2]
[354083671,1740228640133,-5898.15023027,0.0001,2]
[354083673,1740228640144,-11008.07102935,0.0001,2]
[354083676,1740228640155,-234941.805,0.0001,2]
[354083678,1740228640165,-1855.07624526,0.0001,2]
[354083699,1740228640364,-277744.14142957,0.0001,2]
[354083701,1740228640376,-19886.67596401,0.0001,2]
[354083704,1740228640387,-368349.21965535,0.0001,2]
[354083706,1740228640398,-95847.55232123,0.0001,2]
[354083709,1740228640417,-270.54,0.0001,2]
[354083711,1740228640443,-576.99,0.0001,2]
[354083916,1740228642698,-1000.67590979,0.0001,2]
[354083925,1740228642755,-6263.1524,0.0001,2]
[354083927,1740228642766,-4113.00818082,0.0001,2]
[354083929,1740228642777,-17223.93237874,0.0001,2]
[354083931,1740228642789,-8314.2,0.0001,2]
[354083933,1740228642800,-1303.12000037,0.0001,2]
[354083935,1740228642811,-627.77380027,0.0001,2]
[354083939,1740228642838,-3100.0003,0.0001,2]
[354083941,1740228642850,-3745.17803497,0.0001,2]
[354083944,1740228642861,-1835.00547396,0.0001,2]
[354083946,1740228642873,-9693.95384074,0.0001,2]
[354083948,1740228642884,-3786.155308,0.0001,2]
[354083950,1740228642895,-629.65284375,0.0001,2]
[354083952,1740228642907,-508.99698021,0.0001,2]
[354083955,1740228642922,-7801.89057942,0.0001,2]
[354083957,1740228642933,-51326.96175038,0.0001,2]
[354083959,1740228642944,-471.725041,0.0001,2]
[354083961,1740228642956,-579587.80835098,0.0001,2]
[354083963,1740228642966,-550.0,0.0001,2]
[354083965,1740228642975,-1405002.82850839,0.0001,2]
[354083967,1740228642985,-200.0,0.0001,2]
[354083969,1740228642994,-206.09757062,0.0001,2]
[354083971,1740228643003,-1574.83441,0.0001,2]
[354083973,1740228643013,-289.87985568,0.0001,2]
[354083975,1740228643022,-275.34720445,0.0001,2]
[354083977,1740228643031,-587.39028891,0.0001,2]
[354083979,1740228643040,-289.38671952,0.0001,2]
[354083981,1740228643050,-6572.68026063,0.0001,2]
[354083983,1740228643059,-200.25224892,0.0001,2]
[354083985,1740228643068,-200.0,0.0001,2]
[354083987,1740228643077,-230.47906726,0.0001,2]
[354083989,1740228643086,-188.59397246,0.0001,2]
[354083991,1740228643095,-333.9,0.00010107,2]
[354083993,1740228643105,-609.78,0.00010136,2]
[354083995,1740228643114,-178.87,0.00010185,2]
[354083997,1740228643123,-609.78,0.00010273,2]
[354083998,1740228643133,-5551.0,0.000104,5]
[354083999,1740228643142,-609.78,0.0001041,2]
[354084000,1740228643152,-230.38,0.00010454,2]
[354084001,1740228643161,-299.99,0.00010475,2]
[354084002,1740228643171,-746.18,0.00010476,2]
[354084004,1740228643180,-609.78,0.00010547,2]
[354084005,1740228643189,-609.78,0.00010684,2]
[354084007,1740228643198,-249.33,0.00010691,2]
[354084009,1740228643207,-420.0,0.00010778,2]
[354084011,1740228643218,-500.0,0.0001078,2]
[354084013,1740228643230,-609.78,0.00010821,2]
[354084015,1740228643240,-156.54024746,0.00010881,2]
[354084017,1740228643250,-500.0,0.00010881,2]
[354084019,1740228643259,-150.84396772,0.00010881,2]
[354084020,1740228643268,-500.37656082,0.00010895,2]
[354084023,1740228643277,-210.2223894,0.000109,2]
[354084024,1740228643286,-4923.121,0.00010932,2]
[354084026,1740228643298,-501.298779,0.00010934,2]
[354084028,1740228643307,-500.0,0.00010934,2]
[354084030,1740228643316,-209.81594427,0.00010934,2]
[354084032,1740228643325,-157.0054377,0.00010934,2]
[354084034,1740228643334,-362.94007612,0.00010934,2]
[354084036,1740228643343,-151.84511314,0.00010938,2]
[354084038,1740228643352,-501.13004315,0.00010938,2]
[354084040,1740228643361,-500.0,0.00010954,2]
[354084042,1740228643372,-500.0,0.00010954,2]
[354084044,1740228643381,-600.0,0.00010954,2]
[354084046,1740228643390,-500.0,0.00010958,2]
[354084048,1740228643400,-500.0,0.00010958,2]
[354084050,1740228643410,-511.09666124,0.00010958,2]
[354084052,1740228643419,-500.0,0.00010958,2]
[354084053,1740228643428,-500.0,0.00010958,2]
[354084055,1740228643438,-500.0,0.00010958,2]
[354084057,1740228643447,-500.0,0.00010958,2]
[354084059,1740228643455,-500.0,0.00010958,2]
[354084061,1740228643464,-500.0,0.00010958,2]
[354084063,1740228643474,-505.02629502,0.00010958,2]
[354084065,1740228643483,-500.0,0.00010958,2]
[354084067,1740228643491,-500.0,0.00010958,2]
[354084069,1740228643500,-500.0,0.00010958,2]
[354084070,1740228643509,-500.0,0.00010958,2]
[354084072,1740228643518,-500.0,0.00010958,2]
[354084074,1740228643527,-500.0,0.00010958,2]
[354084076,1740228643536,-500.0,0.00010958,2]
[354084078,1740228643545,-500.0,0.00010958,2]
[354084080,1740228643555,-500.0,0.00010958,2]
[354084081,1740228643564,-500.0,0.00010958,2]
[354084082,1740228643574,-500.0,0.00010958,2]
[354084083,1740228643583,-500.0,0.00010958,2]
[354084084,1740228643592,-500.0,0.00010958,2]
[354084085,1740228643601,-500.0,0.00010958,2]
[354084086,1740228643610,-500.0,0.00010958,2]
[354084087,1740228643619,-500.0,0.00010958,2]
[354084088,1740228643628,-500.0,0.00010958,2]
[354084089,1740228643637,-500.0,0.00010958,2]
[354084090,1740228643646,-503.06601735,0.00010958,2]
[354084091,1740228643655,-500.0,0.00010958,2]
[354084092,1740228643664,-500.0,0.00010958,2]
[354084093,1740228643673,-500.0,0.00010958,2]